bitfinex-derivatives/quotes_ETHF0:USTF0_20250926
["timestamp","ask_amount","ask_price","bid_price","bid_amount"]
[1758930060149,1.70889949,4034.5,4034.4,1.18216]
[1758930061850,1.70889949,4034.5,4034.4,0.7363]
[1758930062944,1.70889949,4034.5,4034.4,0.5273]
[1758930063146,1.70889949,4034.5,4034.4,0.3156]
[1758930064245,0.44589,4034.1,4034.0,0.338]
[1758930064544,1.20459,4034.1,4034.0,1.56351]
[1758930064749,1.70892949,4034.1,4034.0,1.30851]
[1758930064941,1.70892949,4034.1,4034.0,1.56351]
[1758930065651,1.26303949,4034.1,4034.0,1.56351]
[1758930066350,1.70892949,4034.1,4034.0,1.56351]
[1758930067952,1.26303949,4034.1,4034.0,1.30851]
[1758930068147,1.26303949,4034.1,4034.0,1.56351]
[1758930068348,0.93543949,4034.1,4034.0,1.56351]
[1758930070850,0.71683949,4034.1,4034.0,1.56351]
[1758930073852,1.16272949,4034.1,4034.0,1.56351]
[1758930074059,0.71683949,4034.1,4034.0,1.56351]
[1758930074956,1.16272949,4034.1,4034.0,1.56351]
[1758930076852,1.16272949,4034.1,4034.0,1.1166]
[1758930077354,1.69572949,4034.1,4034.0,0.7813]
[1758930077556,1.69572949,4034.1,4034.0,0.5696]
[1758930078656,1.69572949,4034.1,4033.9,0.00205569]
[1758930078657,1.27771,4034.0,4033.9,0.00205569]
[1758930078859,6.78204949,4034.0,4033.9,0.00205569]
[1758930079751,6.78204949,4034.0,4033.9,0.33135569]
[1758930081846,6.78204949,4034.0,4033.9,0.00205569]
[1758930082748,6.78204949,4034.0,4033.9,0.33135569]
[1758930082952,6.78204949,4034.0,4033.9,0.00205569]
[1758930083356,7.03604949,4034.0,4033.9,0.00205569]
[1758930084361,1.94494949,4034.0,4033.9,0.54505569]
[1758930084863,2.03604949,4034.0,4033.9,0.00205569]
[1758930086062,7.03604949,4034.0,4033.9,0.00205569]
[1758930092265,3.3384599,4034.0,4033.9,0.54505569]
[1758930092565,0.9664155,4034.0,4033.9,1.21237569]
[1758930092767,0.9664155,4034.0,4033.9,0.76645569]
[1758930093060,1.4123255,4034.0,4033.9,0.76645569]
[1758930094158,0.5047155,4034.0,4033.9,1.21237569]
[1758930106468,0.5047155,4034.0,4033.9,2.33058515]
[1758930106765,4.32600946,4034.6,4034.5,1.01105]
[1758930106967,4.83254865,4034.6,4034.5,1.33925]
[1758930107365,5.03714865,4034.6,4034.5,1.33925]
[1758930108767,5.48298865,4034.6,4034.5,1.33925]
[1758930109766,5.03714865,4034.6,4034.5,1.33925]
[1758930109962,3.71433919,4034.6,4034.5,1.33925]
[1758930110168,4.46373919,4034.6,4034.5,0.6867]
[1758930115668,4.12813919,4034.6,4034.4,0.44586]
[1758930115870,2.37414865,4034.5,4034.4,0.77406]
[1758930116671,2.37414865,4034.5,4034.4,0.3282]
[1758930116972,2.81999865,4034.5,4034.4,0.3282]
[1758930117171,2.55789865,4034.5,4034.4,0.44586]
[1758930117474,2.89349865,4034.5,4034.4,0.44586]
[1758930118175,2.44764865,4034.5,4034.4,0.44586]
[1758930118578,2.44764865,4034.5,4034.4,0.77406]
[1758930120274,0.7494,4034.2,4034.0,0.4459]
[1758930120577,2.37414865,4034.1,4034.0,0.7741]
[1758930120977,2.37414865,4034.1,4034.0,0.3282]
[1758930121477,2.37414865,4034.1,4034.0,0.5529]
[1758930123082,2.37414865,4034.1,4034.0,0.99881]
[1758930123281,2.82003865,4034.1,4034.0,0.5529]
[1758930123581,1.25593919,4034.1,4034.0,0.99881]
[1758930123774,1.25593919,4034.1,4034.0,1.13261]
[1758930124875,1.70182919,4034.1,4034.0,0.3282]
[1758930127190,1.70182919,4034.1,4033.9,0.00205569]
[1758930127191,0.5129,4034.0,4033.9,0.00205569]
[1758930127487,1.32633919,4034.0,4033.9,0.00205569]
[1758930127683,1.23533919,4034.0,4033.9,0.00205569]
[1758930127888,2.35354865,4034.0,4033.9,0.31555569]
[1758930128485,2.35354865,4034.0,4033.9,0.52765569]
[1758930130900,2.35354865,4034.0,4033.9,0.31555569]
[1758930131097,0.50653919,4034.0,4033.9,1.17847569]
[1758930131292,3.2078,4034.1,4033.9,2.29668515]
[1758930131492,3.2078,4034.1,4034.0,0.8538]
[1758930131799,3.2078,4034.1,4034.0,1.1078]
[1758930131800,5.56130523,4034.1,4034.0,1.1078]
[1758930131987,5.56130523,4034.1,4034.0,0.8538]
[1758930132490,5.56130523,4034.1,4034.0,0.6489]
[1758930133297,4.44309577,4034.1,4034.0,0.6489]
[1758930133700,4.44309577,4034.1,4034.0,0.8541]
[1758930138407,4.44309577,4034.1,4034.0,0.5256]
[1758930138705,4.88898577,4034.1,4034.0,0.5256]
[1758930139699,4.88898577,4034.1,4034.0,0.8636]
[1758930139700,4.13619577,4034.1,4034.0,0.8636]
[1758930139901,1.2386,4035.0,4034.4,0.44586]
[1758930139902,0.44582,4034.8,4034.4,0.44586]
[1758930140202,0.32322742,4034.9,4034.4,0.44586]
[1758930140203,1.17689732,4034.7,4034.6,0.7514]
[1758930140403,0.73106732,4034.7,4034.6,0.7514]
[1758930143912,1.27236732,4034.7,4034.6,0.7514]
[1758930144702,0.95216732,4034.7,4034.6,0.7514]
[1758930146613,0.95216732,4034.7,4034.6,1.0054]
[1758930147716,0.73106732,4034.7,4034.6,1.0054]
[1758930147916,0.73106732,4034.7,4034.6,1.45124]
[1758930149204,0.50566732,4034.7,4034.6,1.45124]
[1758930149611,0.50566732,4034.7,4034.6,1.65168634]
[1758930150513,0.00302742,4034.9,4034.8,1.19722]
[1758930150713,0.00302742,4034.9,4034.8,1.45022]
[1758930150914,0.50833504,4034.9,4034.8,1.45022]
[1758930151412,0.50833504,4034.9,4034.8,2.56842946]
[1758930152815,0.00302742,4034.9,4034.8,2.56842946]
[1758930156507,0.00302742,4034.9,4034.8,1.45022]
[1758930157015,0.22842742,4034.9,4034.8,0.7514]
[1758930157210,1.21553742,4034.9,4034.8,0.5462]
[1758930157409,1.21553742,4034.9,4034.8,0.7992]
[1758930157614,0.76972742,4034.9,4034.8,0.5462]
[1758930157817,0.76972742,4034.9,4034.8,0.7992]
[1758930158212,0.00302742,4034.9,4034.8,1.45022]
[1758930163117,0.50833186,4034.9,4034.8,1.45022]
[1758930165125,0.94613186,4034.9,4034.8,1.19722]
[1758930165328,0.94613186,4034.9,4034.8,1.45022]
[1758930165519,1.26243186,4034.9,4034.8,1.45022]
[1758930165717,0.94613186,4034.9,4034.8,1.45022]
[1758930166118,0.94613186,4034.9,4034.8,1.19722]
[1758930166322,0.94613186,4034.9,4034.8,1.45022]
[1758930166528,0.94613186,4034.9,4034.8,1.19722]
[1758930166824,0.94613186,4034.9,4034.8,1.45022]
[1758930167333,1.39194186,4034.9,4034.8,1.0044]
[1758930167521,1.70824186,4034.9,4034.8,1.0044]
[1758930167824,1.70824186,4034.9,4034.8,1.45022]
[1758930168928,1.70824186,4034.9,4034.8,0.7514]
[1758930169123,1.70824186,4034.9,4034.8,1.45022]
[1758930169320,1.39194186,4034.9,4034.8,1.45022]
[1758930169721,1.39194186,4034.9,4034.8,1.0044]
[1758930170019,1.70824186,4034.9,4034.8,1.0044]
[1758930170827,1.70824186,4034.9,4034.8,0.7514]
[1758930171031,1.70824186,4034.9,4034.8,1.0044]
[1758930181224,1.70824186,4034.9,4034.8,0.7514]
[1758930182131,1.70824186,4034.9,4034.5,0.1328]
[1758930182132,0.67214,4034.6,4034.5,0.1328]
[1758930182335,0.7541,4034.3,4034.2,0.86118]
[1758930182633,1.70527444,4034.3,4034.2,0.6683]
[1758930182832,1.70527444,4034.3,4034.2,0.9846]
[1758930183737,1.70527444,4034.3,4034.2,0.7316]
[1758930184037,1.70527444,4034.3,4034.2,0.775]
[1758930184943,1.70527444,4034.3,4034.2,0.9846]
[1758930185737,0.94310444,4034.3,4034.2,1.43048]
[1758930186442,0.44583,4034.7,4034.6,0.4321]
[1758930186643,1.15802505,4034.7,4034.6,0.7593]
[1758930187542,0.50609505,4034.7,4034.6,0.7593]
[1758930187834,0.50609505,4034.7,4034.5,4.04245]
[1758930187835,0.00302742,4034.9,4034.8,0.7593]
[1758930188041,0.50910863,4034.9,4034.8,1.0123]
[1758930191445,1.16101863,4034.9,4034.8,1.0123]
[1758930193447,0.71520863,4034.9,4034.8,1.45812]
[1758930193642,0.50910863,4034.9,4034.8,1.45812]
[1758930193839,0.50910863,4034.9,4034.8,2.85078469]
[1758930194243,0.50910863,4034.9,4034.8,1.45812]
[1758930194840,0.50910863,4034.9,4034.8,1.20512]
[1758930195041,0.50910863,4034.9,4034.8,1.45812]
[1758930195042,0.71860863,4034.9,4034.8,1.45812]
[1758930195742,0.50910863,4034.9,4034.8,2.85078469]
[1758930195951,0.44573,4035.6,4035.5,0.5461]
[1758930196152,0.44573,4035.6,4035.5,0.7991]
[1758930196343,0.95166528,4035.6,4035.5,0.7991]
[1758930196543,0.95166528,4035.6,4035.5,1.1109]
[1758930196947,0.95440337,4035.6,4035.5,1.1109]
[1758930198445,1.16390337,4035.6,4035.5,1.1109]
[1758930199751,0.71817337,4035.6,4035.5,1.1109]
[1758930201843,0.71817337,4035.6,4035.5,1.55664]
[1758930202154,1.16390337,4035.6,4035.5,1.55664]
[1758930202545,0.71817337,4035.6,4035.5,1.55664]
[1758930206956,1.69390337,4035.6,4035.5,1.55664]
[1758930207154,1.24817337,4035.6,4035.5,1.55664]
[1758930208751,0.92727337,4035.6,4035.5,1.30364]
[1758930208954,0.92727337,4035.6,4035.5,1.55664]
[1758930209759,0.92727337,4035.6,4035.5,1.1109]
[1758930211457,0.71777337,4035.6,4035.5,1.1109]
[1758930211657,0.71817337,4035.6,4035.5,0.8579]
[1758930211858,0.71817337,4035.6,4035.5,1.1109]
[1758930212158,0.71817337,4035.6,4035.5,1.55664]
[1758930213061,1.16390337,4035.6,4035.5,1.55664]
[1758930213259,1.16390337,4035.6,4035.5,1.1109]
[1758930214161,1.16390337,4035.6,4035.5,1.55664]
[1758930215455,0.71817337,4035.6,4035.5,1.1109]
[1758930215656,1.16390337,4035.6,4035.5,1.55664]
[1758930219261,1.37300337,4035.6,4035.5,1.55664]
[1758930219563,1.24817337,4035.6,4035.5,1.1109]
[1758930219762,1.24817337,4035.6,4035.5,0.8579]
[1758930219964,1.24817337,4035.6,4035.5,1.1109]
[1758930220152,1.24817337,4035.6,4035.5,1.55664]
[1758930220759,0.92727337,4035.6,4035.5,1.55664]
[1758930222863,0.50867337,4035.6,4035.5,2.6739561]
[1758930224067,0.00273809,4035.6,4035.5,2.6739561]
[1758930227074,0.00273809,4035.6,4035.5,2.8695736]
[1758930227973,0.44423809,4035.6,4035.5,0.8579]
[1758930228173,0.76523809,4035.6,4035.5,1.1109]
[1758930228575,0.44423809,4035.6,4035.5,1.1109]
[1758930228975,0.76523809,4035.6,4035.5,1.1109]
[1758930229473,0.44423809,4035.6,4035.5,1.1109]
[1758930230372,0.76523809,4035.6,4035.5,1.1109]
[1758930230972,0.44423809,4035.6,4035.5,1.1109]
[1758930232875,0.76523809,4035.6,4035.5,1.1109]
[1758930233270,0.76523809,4035.6,4035.5,1.55664]
[1758930233775,1.21096809,4035.6,4035.5,1.55664]
[1758930234272,1.21096809,4035.6,4035.5,1.30364]
[1758930234463,1.21096809,4035.6,4035.5,1.1109]
[1758930234869,1.21096809,4035.6,4035.5,0.8579]
[1758930235165,1.21096809,4035.6,4035.5,1.55664]
[1758930236173,1.21096809,4035.6,4035.5,0.8579]
[1758930236370,1.21096809,4035.6,4035.5,0.3118]
[1758930236371,1.71634208,4035.6,4035.5,0.3118]
[1758930236569,1.71634208,4035.6,4035.5,0.5648]
[1758930236874,1.71634208,4035.6,4035.5,0.7767]
[1758930237673,1.71634208,4035.6,4035.5,0.5237]
[1758930237868,1.71634208,4035.6,4035.4,0.253]
[1758930237869,0.44576,4035.3,4035.2,3.2078]
[1758930238065,1.20826,4035.3,4035.2,3.8874]
[1758930238270,1.39263399,4035.3,4035.2,3.6344]
[1758930238471,1.39263399,4035.3,4035.2,3.7585]
[1758930238472,1.71363399,4035.3,4035.2,3.7585]
[1758930238980,1.71363399,4035.3,4035.2,3.2078]
[1758930239376,1.71363399,4035.3,4035.2,3.5466]
[1758930239977,1.71363399,4035.3,4035.2,3.7585]
[1758930241969,1.71363399,4035.3,4035.2,0.5507]
[1758930242175,0.4415,4034.8,4034.7,3.4197]
[1758930242371,0.7625,4034.8,4034.7,4.0105]
[1758930242575,0.94684297,4034.8,4034.7,4.2252]
[1758930243386,0.4415,4034.8,4034.7,4.2252]
[1758930244291,0.88732,4034.8,4034.7,4.2252]
[1758930244484,1.20832,4034.8,4034.7,4.2252]
[1758930244785,1.71342131,4034.8,4034.7,3.7986]
[1758930245082,0.50510131,4034.8,4034.7,4.2252]
[1758930245589,0.72620131,4034.8,4034.7,4.2252]
[1758930246388,0.94660131,4034.8,4034.7,4.2252]
[1758930246989,0.94660131,4034.8,4034.7,3.9732]
[1758930247288,1.28080131,4034.8,4034.7,4.2252]
[1758930248292,0.7757,4034.8,4034.7,4.2252]
[1758930248686,1.8930161,4034.8,4034.7,3.9732]
[1758930248887,2.39770219,4034.8,4034.7,0.3388]
[1758930249579,1.22223,4034.7,4034.6,0.5688]
[1758930249779,1.72691609,4034.7,4034.6,0.3168]
[1758930249992,1.22227,4034.3,4034.2,3.7349]
[1758930250189,2.3395861,4034.3,4034.2,3.9869]
[1758930250890,2.3395861,4034.3,4034.2,3.7349]
[1758930252500,0.87999,4034.1,4034.0,0.3311]
[1758930252705,4.91523056,4034.1,4034.0,0.3311]
[1758930253205,4.91523056,4034.1,4034.0,0.8818]
[1758930255607,4.59203056,4034.1,4034.0,0.8818]
[1758930255999,6.03254666,4034.1,4034.0,0.8818]
[1758930257399,5.5283061,4034.1,4034.0,0.8818]
[1758930263208,6.03161228,4034.1,4034.0,0.8818]
[1758930264097,6.03161228,4034.1,4034.0,0.5381]
[1758930265106,1.38329618,4034.1,4034.0,0.8818]
[1758930265305,1.38349093,4034.1,4034.0,0.8818]
[1758930265905,1.70669093,4034.1,4034.0,0.8818]
[1758930266703,3.2078,4034.6,4034.2,0.44587]
[1758930266910,0.66214,4034.6,4034.5,0.8818]
[1758930267109,1.1657543,4034.6,4034.5,0.8818]
[1758930267810,1.7067543,4034.6,4034.5,0.8818]
[1758930270511,1.3835543,4034.6,4034.5,0.8818]
[1758930271214,1.7067543,4034.6,4034.5,0.8818]
[1758930275410,0.9377143,4034.6,4034.5,0.8818]
[1758930275908,1.2609143,4034.6,4034.5,0.8818]
[1758930276111,1.7067543,4034.6,4034.5,0.8818]
[1758930276916,1.7067543,4034.6,4034.5,1.32765]
[1758930276917,1.2609143,4034.6,4034.5,1.32765]
[1758930278328,1.7067543,4034.6,4034.5,1.32765]
[1758930279519,1.2609143,4034.6,4034.5,1.32765]
[1758930279916,0.9377143,4034.6,4034.5,1.32765]
[1758930281120,1.3835543,4034.6,4034.5,1.32765]
[1758930282421,1.3835543,4034.6,4034.5,0.8818]
[1758930282723,1.7165543,4034.6,4034.5,0.8818]
[1758930284924,1.7165543,4034.6,4034.5,1.32765]
[1758930285229,1.2707143,4034.6,4034.5,0.8818]
[1758930285426,1.7165543,4034.6,4034.5,0.8818]
[1758930290627,1.3835543,4034.6,4034.5,0.8818]
[1758930293717,0.4341,4034.6,4034.5,1.32765]
[1758930294127,0.87994,4034.6,4034.5,1.32765]
[1758930294325,0.4341,4034.6,4034.5,1.32765]
[1758930294718,0.9395465,4034.6,4034.5,1.32765]
[1758930294926,1.3853865,4034.6,4034.5,0.8818]
[1758930298628,1.7183865,4034.6,4034.5,0.8818]
[1758930300132,0.9395465,4034.6,4034.5,0.8818]
[1758930300627,1.3853865,4034.6,4034.5,0.8818]
[1758930301333,1.7183865,4034.6,4034.5,0.8818]
[1758930307631,1.7183865,4034.6,4034.5,0.5381]
[1758930307837,0.87856,4034.4,4034.3,0.5608]
[1758930308031,1.7161065,4034.4,4034.3,0.7802]
[1758930308336,1.71639818,4034.4,4034.3,0.7802]
[1758930309135,3.10960796,4034.4,4034.3,0.5282]
[1758930309432,3.10960796,4034.4,4034.3,0.7802]
[1758930313032,3.10960796,4034.4,4034.3,0.3088]
[1758930313232,1.19537,4034.3,4034.2,3.7788]
[1758930313433,1.70110818,4034.3,4034.2,3.7788]
[1758930313740,1.70110818,4034.3,4034.2,3.5268]
[1758930315337,0.44591,4034.0,4033.9,0.00205569]
[1758930315541,3.18545796,4034.0,4033.9,0.00205569]
[1758930316840,3.18545796,4034.0,4033.9,0.32105569]
[1758930317140,3.43745796,4034.0,4033.9,0.32105569]
[1758930319441,1.38934818,4034.0,4033.9,0.73205569]
[1758930320039,1.70114818,4034.0,4033.9,0.73205569]
[1758930320241,1.25523818,4034.0,4033.9,0.73205569]
[1758930320437,0.50573818,4034.0,4033.9,0.98405569]
[1758930320639,1.25523818,4034.0,4033.9,0.98405569]
[1758930321131,1.25523818,4034.0,4033.9,0.52635569]
[1758930326947,1.25523818,4034.0,4033.9,1.17797569]
[1758930327252,1.25523818,4034.0,4033.9,0.73205569]
[1758930328143,1.70114818,4034.0,4033.9,0.73205569]
[1758930329750,1.25523818,4034.0,4033.9,1.17797569]
[1758930329939,1.25523818,4034.0,4033.9,0.73205569]
[1758930329940,1.70114818,4034.0,4033.9,0.73205569]
[1758930332849,1.70114818,4034.0,4033.9,0.32105569]
[1758930333154,1.70114818,4034.0,4033.9,0.52635569]
[1758930333952,1.70114818,4034.0,4033.9,0.32105569]
[1758930334455,1.70114818,4034.0,4033.9,0.00205569]
[1758930335356,1.70114818,4034.0,4033.9,0.32105569]
[1758930336159,1.79224818,4034.0,4033.9,0.00205569]
[1758930337954,6.79224818,4034.0,4033.9,0.00205569]
[1758930339460,1.79224818,4034.0,4033.9,0.00205569]
[1758930340553,4.02969752,4034.0,4033.9,0.00205569]
[1758930340752,4.28169752,4034.0,4033.9,0.00205569]
[1758930344560,4.02969752,4034.0,4033.9,0.00205569]
[1758930344763,4.28169752,4034.0,4033.9,0.00205569]
[1758930353264,4.28169752,4034.0,4033.5,0.319]
[1758930353265,0.65591,4033.1,4033.0,0.4494]
[1758930353459,2.05636285,4033.1,4033.0,0.8856]
[1758930354462,2.05636285,4033.1,4033.0,0.88784553]
[1758930354672,2.38416285,4033.1,4033.0,0.45164553]
[1758930354856,2.38416285,4033.1,4032.5,0.1357]
[1758930354857,6.96268752,4033.1,4032.5,0.1357]
[1758930355060,6.96268752,4033.1,4032.5,0.2101]
[1758930355061,2.99714934,4032.6,4032.5,0.2101]
[1758930355260,3.50288752,4032.6,4032.5,0.2101]
[1758930355457,2.38416285,4032.6,4032.5,0.2101]
[1758930355969,2.83217898,4032.6,4032.5,0.21321577]
[1758930357668,2.83217898,4032.6,4032.5,0.00311577]
[1758930357869,3.95090365,4032.6,4032.5,0.00311577]
[1758930361470,7.15870365,4032.6,4032.5,0.00311577]
[1758930361667,1.20585,4031.8,4031.7,3.985]
[1758930361872,2.32457467,4031.8,4031.7,3.985]
[1758930362069,2.32457467,4031.8,4031.7,3.733]
[1758930362272,2.32457467,4031.8,4031.7,0.2101]
[1758930362469,2.32457467,4031.8,4031.7,0.4362]
[1758930362670,0.00195613,4032.6,4032.5,0.8765]
[1758930362862,3.2078,4033.1,4033.0,0.8765]
[1758930363769,1.87842467,4033.5,4033.4,0.4362]
[1758930363968,2.38340555,4033.5,4033.4,0.7513]
[1758930366177,0.50498088,4033.5,4033.4,0.7513]
[1758930366879,0.00181449,4033.5,4033.4,7.12202467]
[1758930378895,0.5279,4034.5,4034.4,1.18246]
[1758930379094,0.5279,4034.5,4034.4,1.43446]
[1758930379995,0.53050962,4034.5,4034.4,1.43446]
[1758930383592,0.74850962,4034.5,4034.4,0.7366]
[1758930383788,0.74850962,4034.5,4034.2,3.2078]
[1758930383789,0.2147,4034.3,4034.2,3.2078]
[1758930383986,0.7459,4034.3,4034.2,3.4588]
[1758930384190,0.7459,4034.3,4034.2,4.64128]
[1758930384792,5.7459,4034.3,4034.2,3.2078]
[1758930384998,5.7459,4034.3,4034.2,3.4588]
[1758930385198,5.7459,4034.3,4034.2,3.9902]
[1758930385898,5.7459,4034.3,4034.2,3.6642]
[1758930386503,0.4327,4034.1,4034.0,0.7824]
[1758930386700,0.7459,4034.1,4034.0,0.7824]
[1758930388702,0.7459,4034.1,4034.0,0.4564]
[1758930388901,0.7459,4033.8,4033.7,3.7392]
[1758930389103,0.7459,4033.8,4033.7,3.9902]
[1758930389604,1.86462467,4033.8,4033.7,3.9902]
[1758930390804,1.86462467,4033.8,4033.7,4.1954]
[1758930391504,2.81311598,4033.8,4033.7,3.7392]
[1758930391710,2.81311598,4033.8,4033.7,3.4588]
[1758930391898,2.81311598,4033.8,4033.7,3.6642]
[1758930392100,2.81311598,4033.8,4033.7,3.9902]
[1758930392603,2.36718598,4033.8,4033.7,4.1954]
[1758930392808,2.36718598,4033.8,4033.7,3.9902]
[1758930393104,2.81311598,4033.8,4033.7,3.9902]
[1758930393403,0.44594,4033.7,4033.3,0.326]
[1758930393598,1.99162467,4033.5,4033.2,3.2078]
[1758930393800,1.19188,4033.3,4033.2,3.2078]
[1758930394004,0.7459,4033.3,4033.2,3.6642]
[1758930394309,0.7459,4033.3,4033.2,3.9902]
[1758930395107,0.7459,4033.3,4033.2,4.1954]
[1758930395408,0.7459,4033.3,4033.2,3.2078]
[1758930395606,1.24942072,4033.3,4033.2,3.2078]
[1758930396108,0.7459,4033.0,4032.9,0.5314]
[1758930396295,1.19192,4033.0,4032.9,0.7824]
[1758930396906,0.7459,4033.0,4032.9,0.9876]
[1758930397102,1.87792467,4033.2,4032.9,0.9876]
[1758930397297,1.03130337,4033.1,4033.0,0.8706]
[1758930398109,0.5279,4033.1,4033.0,0.8706]
[1758930399506,0.97391,4033.1,4033.0,0.8706]
[1758930399906,1.19191,4033.1,4033.0,0.8706]
[1758930403511,1.19191,4033.1,4033.0,0.5314]
[1758930403815,1.19191,4033.1,4033.0,0.995]
[1758930406320,1.19191,4033.1,4033.0,1.1262]
[1758930408016,1.19191,4033.1,4033.0,0.995]
[1758930408404,1.19191,4033.1,4033.0,0.996]
[1758930408607,1.19191,4033.1,4033.0,0.744]
[1758930408809,1.19191,4033.1,4033.0,0.4564]
[1758930409514,1.19191,4033.1,4033.0,0.7773]
[1758930410216,1.19191,4033.1,4033.0,1.22332]
[1758930410417,1.19191,4033.1,4033.0,1.43592]
[1758930410617,1.19191,4033.1,4033.0,1.18492]
[1758930410918,1.19191,4033.1,4033.0,1.43692]
[1758930411217,1.19191,4033.1,4033.0,0.9909]
[1758930412418,1.19191,4033.1,4033.0,1.43692]
[1758930414919,0.7459,4033.1,4033.0,1.18492]
[1758930415117,1.24907799,4033.1,4033.0,1.18492]
[1758930416024,1.24907799,4033.1,4033.0,1.31612]
[1758930417321,0.50317799,4033.1,4033.0,1.31612]
[1758930418622,0.82657799,4033.1,4033.0,1.31612]
[1758930419322,0.50317799,4033.1,4033.0,1.31612]
[1758930419718,0.50317799,4033.1,4033.0,6.31612]
[1758930419921,4.19529,4034.1,4034.0,0.7378]
[1758930420119,4.90391145,4034.1,4034.0,0.7378]
[1758930420927,4.45802145,4034.1,4034.0,0.7378]
[1758930423727,4.45802145,4034.1,4034.0,0.5252]
[1758930423919,4.45802145,4034.1,4034.0,0.2043]
[1758930424120,0.7466,4033.2,4033.1,4.17901]
[1758930424325,0.7466,4033.2,4033.1,4.43001]
[1758930424523,0.7466,4033.2,4033.1,3.733]
[1758930424827,1.2503889,4033.2,4033.1,3.984]
[1758930425127,0.2182,4032.7,4032.6,3.2078]
[1758930425315,0.7466,4032.7,4032.6,3.2078]
[1758930425626,0.8827,4032.5,4032.4,0.5252]
[1758930425823,1.3865596,4032.5,4032.4,0.5252]
[1758930429029,1.3865596,4032.5,4032.4,0.7762]
[1758930429626,1.3865596,4032.5,4032.4,0.9841]
[1758930429925,1.2504596,4032.5,4032.4,0.7451]
[1758930433032,1.2504596,4032.5,4032.4,0.9961]
[1758930434725,0.5038596,4032.5,4032.4,0.9961]
[1758930434930,0.5373,4032.8,4032.7,0.7329]
[1758930435235,1.04041436,4032.8,4032.7,1.42995]
[1758930435536,0.3204,4033.1,4033.0,0.99302]
[1758930435733,0.3204,4033.1,4033.0,1.24402]
[1758930435734,0.5373,4033.1,4033.0,1.24402]
[1758930436036,1.04031195,4033.1,4033.0,1.55852]
[1758930436235,1.25181195,4033.1,4033.0,1.42992]
[1758930439134,1.25181195,4033.1,4033.0,1.17892]
[1758930439340,1.25181195,4033.1,4033.0,1.42992]
[1758930439938,1.25181195,4033.1,4033.0,0.9839]
[1758930440533,1.25181195,4033.1,4033.0,0.7329]
[1758930440735,1.25181195,4033.1,4033.0,0.9839]
[1758930443842,1.69782195,4033.1,4033.0,0.9839]
[1758930444539,1.69782195,4033.1,4033.0,0.774]
[1758930445342,1.69782195,4033.1,4033.0,0.523]
[1758930446644,1.25181195,4033.1,4033.0,0.7329]
[1758930446836,1.69782195,4033.1,4033.0,0.7329]
[1758930447748,1.25181195,4033.1,4033.0,0.7329]
[1758930447938,0.71991195,4033.1,4033.0,1.30752]
[1758930448139,0.50301195,4033.1,4033.0,1.30752]
[1758930448838,1.04031195,4033.1,4033.0,1.30752]
[1758930449243,1.48632195,4033.1,4033.0,1.30752]
[1758930449447,1.48632195,4033.1,4033.0,0.8615]
[1758930451550,1.69782195,4033.1,4033.0,0.8615]
[1758930453851,1.69782195,4033.1,4033.0,0.774]
[1758930455547,1.69782195,4033.1,4033.0,0.523]
[1758930455749,1.69782195,4033.1,4033.0,0.774]
[1758930456253,1.19485,4032.8,4032.7,0.523]
[1758930456544,1.19485,4032.8,4032.7,0.774]
[1758930457448,1.69863422,4032.8,4032.7,0.774]
[1758930457949,1.69863422,4032.8,4032.7,0.9839]
[1758930462852,1.69863422,4032.8,4032.7,0.7329]
[1758930463042,1.69863422,4032.8,4032.7,0.9839]
[1758930464349,1.69863422,4032.8,4032.7,0.7329]
[1758930464552,0.7497,4032.2,4032.1,5.29174521]
[1758930464855,0.7497,4032.2,4032.1,4.2105]
[1758930465050,1.1958,4032.2,4032.1,4.2105]
[1758930465255,1.1958,4032.2,4032.1,4.65662]
[1758930465854,0.4461,4032.3,4032.2,1.1978]
[1758930469054,0.7713,4032.3,4032.2,1.1978]
[1758930469353,0.4461,4032.3,4032.2,1.1978]
[1758930469551,0.5309,4032.4,4032.3,1.19779]
[1758930469858,0.5309,4032.4,4032.3,1.0027]
[1758930469859,1.48076104,4032.4,4032.3,1.0027]
[1758930470354,1.48076104,4032.4,4032.3,1.44879]
[1758930471257,1.69956104,4032.4,4032.3,1.44879]
[1758930473359,1.19578,4032.4,4032.3,1.44879]
[1758930473852,0.7497,4032.4,4032.3,1.44879]
[1758930477259,0.2057,4032.7,4032.4,0.3357]
[1758930477463,0.87055,4032.7,4032.6,1.19776]
[1758930477663,1.37420569,4032.7,4032.6,1.19776]
[1758930477864,1.69940569,4032.7,4032.6,1.19776]
[1758930479562,0.4245,4032.2,4032.1,3.4195]
[1758930479865,0.7497,4032.2,4032.1,4.11662]
[1758930480263,0.7497,4032.2,4032.1,4.65662]
[1758930480964,0.5309,4032.2,4032.1,4.65662]
[1758930481160,0.5309,4032.2,4032.1,5.77555293]
[1758930481862,0.7497,4032.2,4032.1,5.77555293]
[1758930484673,0.7497,4032.2,4032.1,4.40562]
[1758930484873,0.1253,4032.5,4032.4,0.44608]
[1758930485076,0.87055,4032.7,4032.6,0.99346]
[1758930485366,1.37430888,4032.7,4032.6,1.44876]
[1758930485669,1.69950888,4032.7,4032.6,1.44876]
[1758930486767,1.25345888,4032.7,4032.6,1.44876]
[1758930487164,0.70945888,4032.7,4032.6,1.44876]
[1758930487567,1.02025888,4032.7,4032.6,1.44876]
[1758930489863,1.23605888,4032.7,4032.6,1.44876]
[1758930493573,0.50375888,4032.7,4032.6,1.44876]
[1758930494966,1.06305888,4032.7,4032.6,1.44876]
[1758930495270,0.49636599,4032.7,4032.6,6.89442586]
[1758930495475,0.5593,4033.4,4033.3,0.7385]
[1758930495874,0.7841,4033.4,4033.3,0.7385]
[1758930497170,0.7841,4033.4,4033.3,0.9895]
[1758930501277,0.7841,4033.4,4033.3,1.43548]
[1758930502678,0.7841,4033.4,4033.3,1.18448]
[1758930502879,1.23007,4033.4,4033.3,0.90468]
[1758930503375,0.7841,4033.4,4033.3,1.21148]
[1758930503775,1.23007,4033.4,4033.3,1.21148]
[1758930504780,1.23007,4033.4,4033.3,0.7655]
[1758930505278,0.7841,4033.4,4033.3,0.7655]
[1758930505479,1.23007,4033.4,4033.3,0.7655]
[1758930507587,1.73323009,4033.4,4033.3,0.7655]